Cogmind - Beta 15 @@@ ROGUE MODE // 2025.07.23 @ 20:56:41 Player: Cracklepappy Result: Self-destructed Performance ------------- Evolutions (1) 500 Regions Visited (2) 400 Robots Destroyed (40) 200 Value Destroyed (968) 968 Prototype IDs (0) 0 Alien Tech Used (0) 0 Bonus (0) 0 TOTAL SCORE: 2068 Bonus ------- None Cogmind --------- Core Integrity 400/400 Matter 280/300 Energy 230/250 System Corruption 0% Temperature Cool (0) Movement Rolling (95) Ox1 Location -9/Materials Parts ------- > --- POWER (1) -------- Ion Engine > --- PROPULSION (3) --- Wheel Wheel > --- UTILITY (2) ------ Large Storage Unit Light Armor Plating > --- WEAPON (3) ------- Assault Rifle Assault Rifle Assault Rifle > --- INVENTORY (15) --- Subdweller Power Source Wheel Compact Wheel Compact Wheel Improved Heat Sink High-capacity Matter Pod (200) Subdweller Optics Seismic Detector Light Armor Plating Small Laser Particle Gun Assault Rifle Subdweller Machine Gun Mining Laser Peak State ------------ > --- POWER ------------ Ion Engine > --- PROPULSION ------- Wheel Wheel > --- UTILITY ---------- Large Storage Unit Light Armor Plating > --- WEAPON ----------- Assault Rifle Subdweller Machine Gun > --- INVENTORY -------- Subdweller Power Source Wheel Compact Wheel Compact Wheel Improved Heat Sink High-capacity Matter Pod Subdweller Optics Seismic Detector Light Armor Plating Particle Gun Assault Rifle Assault Rifle Assault Rifle Assault Rifle Mining Laser [Rating: 10] Favorites ----------- Power Ion Engine Engine Ion Engine Propulsion Wheel Wheel Wheel Utility Light Armor Plating Device Seismic Detector Storage Large Storage Unit Protection Light Armor Plating Weapon EM Pulse Gun Energy Gun EM Pulse Gun Ballistic Gun Assault Rifle Special Weapon Mining Laser Build | -11 -10 -9 ------- Run | Yrd Mat Mat Slots Evolved 2 | . . 2 Power . | . . . Propulsion 1 | . . 1 Utility . | . . . Weapon 1 | . . 1 Parts Attached 31 | 8 21 2 Power 3 | 1 2 . Engine 3 | 1 2 . Core . | . . . Reactor . | . . . Propulsion 10 | 2 8 . Treads . | . . . Leg . | . . . Wheel 10 | 2 8 . Hover . | . . . Flight . | . . . Utility 7 | 2 5 . Device 1 | 1 . . Storage 3 | 1 2 . Processor . | . . . Hackware . | . . . Protection 3 | . 3 . Artifact . | . . . Weapon 11 | 3 6 2 Energy Gun 5 | 2 3 . Energy Cannon . | . . . Ballistic Gun 5 | 1 2 2 Ballistic Cannon . | . . . Launcher . | . . . Special Weapon 1 | . 1 . Impact Weapon . | . . . Slashing Weapon . | . . . Piercing Weapon . | . . . Special Melee Weapon . | . . . Unidentified Prototypes . | . . . Parts Lost 8 | . 8 . Power . | . . . Propulsion 4 | . 4 . Utility . | . . . Weapon 4 | . 4 . Highest Loss Streak 4 | . 4 . To Critical Strikes . | . . . Average Backups 12 | 5 13 14 Power . | . 1 1 Propulsion 2 | 2 2 3 Utility 4 | . 4 5 Weapon 4 | 1 4 5 Tool/Special . | . . . Unused Backups 17 | 3 3 11 Power 1 | . . 1 Propulsion 6 | 3 . 3 Utility 6 | . 2 4 Weapon 4 | . 1 3 Tool/Special . | . . . Average Slot Usage (%) 99 | . 99 88 Engine 13 | . 14 11 Wheel 27 | . 27 22 Device 1 | . 1 . Storage 14 | . 14 11 Protection 11 | . 11 11 Energy Gun 13 | . 13 11 Ballistic Gun 13 | . 13 22 Peak Build Rating 10 | 7 10 10 Average Rating 8 | 6 8 10 On Entrance 5 | . 7 10 Naked Turns . | . . . Heaviest Build 34 | 15 34 . Greatest Support 20 | 20 20 . Greatest Overweight (x) 3 | . 3 . Average Overweight (x) . | . . . Largest Inventory Capacity 15 | 8 15 15 Average Capacity 12 | 7 13 15 Most Carried 15 | 8 15 14 Average Carried 12 | 5 13 14 Final Capacity 15 | 8 15 15 Final Carried 15 | 8 15 14 Class Distribution -------------------- 100% | Mutant Dominant Class ---------------- Mutant | -10/Materials Mutant | -9/Materials Resources | -11 -10 -9 ----------- Run | Yrd Mat Mat Matter Collected 1072 | 413 659 . Remotely . | . . . Salvage Created 1491 | 234 1257 . Parts 86 | 22 64 . Haulers Intercepted 1 | . 1 . Recyclers Shooed 1 | 1 . . Parts Field Recycled . | . . . Retrieved Matter . | . . . Parts Self-Destructed . | . . . Prevented . | . . . Kills | -11 -10 -9 ------- Run | Yrd Mat Mat Combat Hostiles Destroyed 21 | . 21 . Guns 21 | . 21 . Classes Destroyed 9 | 3 6 . Worker 4 | 2 2 . Builder 1 | . 1 . Tunneler 5 | 5 . . Hauler 1 | . 1 . Recycler 3 | 1 2 . Operator 2 | . 2 . Watcher 3 | . 3 . Grunt 19 | . 19 . Subdweller 2 | . 2 . Best Kill Streak 4 | 4 3 . Combat Bots Only 3 | . 3 . Max Kills in Single Turn 2 | 1 2 . Gunslinging . | . . . Exploded . | . . . Melee . | . . . Uniques/NPCs Destroyed . | . . . Combat | -11 -10 -9 -------- Run | Yrd Mat Mat Hostile Shots Fired 95 | . 95 . Missed 33 | . 33 . Hits 62 | . 62 . Projectile 62 | . 62 . Critical Strikes 1 | . 1 . Damage Taken 998 | . 998 . Core 120 | . 120 . Absorbed by Shields . | . . . Core Remaining (%) 76 | 100 52 . Volleys Fired 137 | 41 96 . Largest 2 | 1 2 . Hottest 100 | 20 100 . Shots Fired 225 | 41 184 . Gun 221 | 41 180 . Cannon . | . . . Launcher . | . . . Special 4 | . 4 . Kinetic 116 | 41 75 . Thermal 10 | . 10 . Explosive . | . . . Electromagnetic 99 | . 99 . Robot Hit Streak 12 | 5 12 . Robot Miss Streak 6 | 2 6 . Penetration Max . | . . . Secondary Targets 3 | . 3 . Max Gunslinging Chain 1 | . 1 . Shots Hit Robots 154 | 27 127 . Core Hits 65 | 9 56 . Critical Kills 1 | . 1 . Critical Parts Destroyed 1 | . 1 . Critical Strikes 2 | . 2 . Destroy 2 | . 2 . Melee Attacks . | . . . Impact . | . . . Slashing . | . . . Piercing . | . . . Sneak Attacks . | . . . Combat Hostiles . | . . . Follow-up Attacks . | . . . Damage Inflicted 2377 | 330 2047 . Guns 2134 | 330 1804 . Cannons . | . . . Explosions 243 | . 243 . Melee . | . . . Ramming . | . . . Kinetic 1138 | 330 808 . Thermal 303 | . 303 . Explosive . | . . . Electromagnetic 936 | . 936 . Impact . | . . . Slashing . | . . . Piercing . | . . . Highest Corruption . | . . . Average Corruption . | . . . Corruption Purged . | . . . Corruption Blocked . | . . . Overload Shots . | . . . Overflow Damage . | . . . Projectiles . | . . . Explosions . | . . . Melee . | . . . Knockbacks . | . . . Impact . | . . . Kinetic . | . . . Secondary . | . . . Self-Inflicted Damage 64 | . 64 . Shots 2 | . 2 . Rammed . | . . . Targets Rammed . | . . . Kicked . | . . . Crushed . | . . . Highest Temperature 228 | . 228 . Average Temperature 55 | . 55 . Received Heat Transfer 375 | . 375 . Siege Activations . | . . . Martial Activations . | . . . Shielding Activations . | . . . Robots Disrupted . | . . . Combat Hostiles . | . . . Robots Corrupted . | . . . Combat Hostiles . | . . . Parts Fried 2 | . 2 . Impact Corruptions . | . . . Robots Melted . | . . . Combat Hostiles . | . . . Parts Melted 1 | . 1 . Heat Transferred 498 | . 498 . Parts Sabotaged . | . . . Parts Stolen . | . . . Parts Stripped . | . . . Power Chain Reactions 4 | . 4 . Alert | -11 -10 -9 ------- Run | Yrd Mat Mat Maximum Alert Level 1 | . 1 . Low Security (%) 82 | 100 80 100 Level 1 17 | . 19 . Level 2 . | . . . Level 3 . | . . . Level 4 . | . . . Level 5 . | . . . High Security . | . . . Max Security . | . . . Peak Influence 247 | 15 247 86 Initial 86 | . . 86 Average 124 | 1 138 86 Influence Increases 856 | 40 816 . Destroy 0b10 Robot/C 380 | . 380 . Destroy 0b10 Robot/NC 95 | 40 55 . Destroy Leader 88 | . 88 . Successful Hack 11 | . 11 . Select Force Hacks 30 | . 30 . Disable Machine 30 | . 30 . Destroy Structure 27 | . 27 . Partial Spotted 15 | . 15 . Lose Combat Pursuer 180 | . 180 . Influence Decreases 770 | 40 610 120 Entered New Map 120 | . . 120 Time Decay 570 | 40 530 . Lost Part 80 | . 80 . Squads Dispatched 3 | . 3 . Investigation 3 | . 3 . Extermination . | . . . Reinforcement . | . . . Assault . | . . . Garrison . | . . . Intercept . | . . . Searches Triggered . | . . . Construction Impeded . | . . . Haulers Reinforced . | . . . Active Scanning Responses . | . . . Cargo Convoy Interrupts . | . . . Stealth | -11 -10 -9 --------- Run | Yrd Mat Mat Distress Signals 6 | . 6 . Communications Jammed . | . . . Distress Signals . | . . . Times Spotted 37 | . 37 . Peak Tracking Total 6 | . 6 . Tactical Retreats 11 | . 11 . Traps | -11 -10 -9 ------- Run | Yrd Mat Mat Traps Triggered 3 | . 3 . Indirectly . | . . . Trap Hack Attempts . | . . . Triggered . | . . . Disarmed . | . . . Reprogrammed . | . . . Reused . | . . . Traps Extracted . | . . . Installed . | . . . Triggered . | . . . Machines | -11 -10 -9 ---------- Run | Yrd Mat Mat Machines Disabled 2 | . 2 . Max in Single Turn 1 | . 1 . Machines Repaired . | . . . Machines Dismantled . | . . . Machines Sabotaged . | . . . Overloaded Fab Kills . | . . . Hacking | -11 -10 -9 --------- Run | Yrd Mat Mat Machines Accessed 7 | . 7 . Terminals 5 | . 5 . Fabricators . | . . . Repair Stations 1 | . 1 . Recycling Units 1 | . 1 . Scanalyzers . | . . . Garrison Access . | . . . Total Hacks 17 | . 17 . Successful 8 | . 8 . Failed 9 | . 9 . Catastrophic 2 | . 2 . Database Lockouts . | . . . Manual 13 | . 13 . Terminals 12 | . 12 . Fabricators . | . . . Repair Stations 3 | . 3 . Recycling Units 2 | . 2 . Scanalyzers . | . . . Garrison Access . | . . . Terminal Hacks 2 | . 2 . Part Schematic 1 | . 1 . Robot Schematic 1 | . 1 . Fabricator Hacks . | . . . Repair Station Hacks 1 | . 1 . Scan Component 1 | . 1 . Recycling Unit Hacks 1 | . 1 . Retrieve Components 1 | . 1 . Scanalyzer . | . . . Garrison Access Hacks . | . . . Unauthorized Hacks 4 | . 4 . Terminals 3 | . 3 . Operators 1 | . 1 . Skim 2 | . 2 . Fabricators . | . . . Repair Stations . | . . . Recycling Units 1 | . 1 . Tunnel 1 | . 1 . Scanalyzers . | . . . Garrison Access . | . . . Data Cores Recovered 2 | . 2 . Used 1 | . 1 . Hacking Detections 6 | . 6 . Full Trace Events 1 | . 1 . Feedback Events . | . . . Feedback Blocked . | . . . Robot Schematics Acquired 1 | . 1 . Robots Built . | . . . Authchips . | . . . Time . | . . . Total Robot Build Rating . | . . . Part Schematics Acquired 1 | . 1 . Parts Built . | . . . Authchips . | . . . Time . | . . . Total Part Build Rating . | . . . Parts Repaired . | . . . Time . | . . . Parts Recycled . | . . . Recycled Matter . | . . . Retrieved Matter . | . . . Retrieved Components 9 | . 9 . Parts Scanalyzed . | . . . Part Schematics Acquired . | . . . Parts Damaged . | . . . Bothacking | -11 -10 -9 ------------ Run | Yrd Mat Mat Used RIF Installer . | . . . Robots Hacked . | . . . Non-combat . | . . . Combat . | . . . Robot Hacks Applied . | . . . Relay Couplers Released . | . . . Fabnet Peak Effective % . | . . . Robots Rewired . | . . . Allies Hacked . | . . . Hacks Repelled . | . . . Allies | -11 -10 -9 -------- Run | Yrd Mat Mat Total Allies . | . . . Largest Group . | . . . Highest-Rated Group . | . . . Highest-Rated Ally . | . . . Total Orders . | . . . Ally Attacks . | . . . Total Damage . | . . . Kills . | . . . Allies Corrupted . | . . . Allies Melted . | . . . Intel | -11 -10 -9 ------- Run | Yrd Mat Mat Active Infowar (turns) 324 | 122 202 . Seismic 324 | 122 202 . Robot Analysis Total . | . . . Derelict Logs Recovered . | . . . Drone Launches . | . . . Drone Recoveries . | . . . Exploration | -11 -10 -9 ------------- Run | Yrd Mat Mat Turns Passed 2225 | 231 1991 3 Spaces Moved 1709 | 153 1556 . Core 1 | 1 . . Treads . | . . . Legs . | . . . Wheels 1708 | 152 1556 . Hover . | . . . Flight . | . . . Fastest Speed 50 | 50 80 . Average Speed 91 | 79 92 . Slowest Speed 125 | 80 125 . Overloaded Moves . | . . . Propulsion Burnouts . | . . . Robots Hopped . | . . . Potential Cave-ins . | . . . Cave-ins Triggered . | . . . Exploration Rate (%) 50 | 6 94 . Regions Visited 2 Branch Regions . Pre-discovered Areas 1 | . 1 . Known Exits Taken . | . . . Unknown Exits Taken 2 | 1 1 . Scrap Searched . | . . . Spaces Dug . | . . . Terrain Destroyed 24 | . 24 . Melee . | . . . Projectile 1 | . 1 . AOE 23 | . 23 . Terrain Rammed . | . . . Walls Destroyed . | . . . Machines Disabled . | . . . Actions | -11 -10 -9 --------- Run | Yrd Mat Mat Total 2134 | 218 1914 2 Wait 198 | . 198 . Move 1707 | 152 1555 . Hop . | . . . Pick Up 36 | 13 23 . Fast Attach 10 | 5 5 . Attach 11 | 2 8 1 Detach . | . . . Swap 18 | 2 15 1 Drop 17 | 3 14 . Fire 137 | 41 96 . Melee . | . . . Ram . | . . . Kick . | . . . Crush . | . . . Escape Stasis . | . . . Rewire . | . . . Trap . | . . . Miscellaneous . | . . . Route ------- -11/Scrapyard -10/Materials (discovered 5 exits: [*Mat x3] / [*Min] / [*Sub]) -9/Materials History --------- Turn | Location | Event 12 | -11/Scrapyard | Discovered new exit (range 16) 232 | -11/Scrapyard | Entered Materials 304 | -10/Materials | Build established: Mutant 439 | -10/Materials | Discovered new exit (range 3) 569 | -10/Materials | Discovered new exit (range 9) 911 | -10/Materials | Discovered new exit (range 3) 1080 | -10/Materials | Discovered new exit (range 6) 1132 | -10/Materials | Derelicts attacked the area 1260 | -10/Materials | Discovered new exit (range 15) 1347 | -10/Materials | Lost 4 parts (2n2w) 2223 | -10/Materials | Entered another Materials area 2223 | -9/Materials | Evolved 2 slots: Propulsion x1, Weapon x1 2226 | -9/Materials | Self-destructed Last Messages --------------- Corrupted Aluminum Leg Ion Engine Corrupted Heat Sink Wheel >>Force(Tunnel) DISCOVERED[-4/Hub_04(d)] 02097_ ALERT: Suspicious activity at Recycling Unit M002. Dispatching Investigation squad. 02108_ Sub. Machine Gun shoots sparks and powers down. 02117_ G-34 Mercenary destroyed. 02135_ Dropped Assault Rifle. 02136_ Acquired Sml. Laser. 02139_ Dropped Wheel. 02149_ Acquired 39 matter. 02150_ Acquired 35 matter. 02162_ U-05 Engineer builds a Wall. 02167_ U-05 Engineer builds a Door. PARAMETERS=PROPULSION+1,WEAPON+1 LOCATION=UNKNOWN GOAL=ESCAPE Map ----- +----------------------------------------------------+ | | | | | | | | | | | | | | | | | | | | | | | | | ????????????????????????????????????? | | ????????????????????????????????????? | | ????????????????????????????????????? | | ????????????????????????????????????? | | ????????????????????????????????????? | | ????????????????????????????????????? | | ????????????????????????????????????? | | ????????????????????????????????????? | | ????????????????????????????????????? | | ????????????????????????????????????? | | ????????????????????????????????????? | | ??????????#########?????????????????? | | ??????????# #?????????????????? | | ??????????# @ #?????????????????? | | ??????????# #?????????????????? | | ??????????##### #?????????????????? | | ???????????????? #?????????????????? | | ????????????????? #?????????????????? | | ????????????????????????????????????? | | ????????????????????????????????????? | | ????????????????????????????????????? | | ????????????????????????????????????? | | ????????????????????????????????????? | | ????????????????????????????????????? | | ????????????????????????????????????? | | ????????????????????????????????????? | | ????????????????????????????????????? | | ????????????????????????????????????? | | ????????????????????????????????????? | | ????????????????????????????????????? | | ????????????????????????????????????? | | ????????????????????????????????????? | | ????????????????????????????????????? | | ????????????????????????????????????? | | ????????????????????????????????????? | | ????????????????????????????????????? | | ????????????????????????????????????? | | ????????????????????????????????????? | +----------------------------------------------------+ Best States ------------- Heat Dissipation 25 Energy Generation 10 Energy Capacity 250 Matter Stores 300 Matter Capacity 300 Sight Range 16 Terrain Scan Density 10 Armor Coverage 150 Evasion (%) 44 Item Schematics ----------------- Assault Rifle | -10/Materials | Hacked Robot Schematics ------------------ M-13 Machinist | -10/Materials | Hacked Fabricated ------------ Nothing Repaired ---------- Nothing Alien Tech Used ----------------- None Achievements -------------- None Challenges ------------ None Game ------ Seed StorageJunkDeflector Manual? 0 Play Time 00:16:28 Cumulative 1106.7 hours Start 2025.07.23 @ 20:40:33 End 2025.07.23 @ 20:56:41 Sessions 1 Manual Loads 0 Difficulty Rogue Special Mode None Game No. 551 Rogue 551 Adventurer 0 Explorer 0 Win Type - Total 23 Types 10/4/3/0/1/1/2/2/0/0 Lore% 90 Gallery% 89 Achievement% 83 Wizard Run 0 Options --------- Layout 0 ASCII 0 Keyboard 0 Movement Numpad Keybinds 0 Fullscreen 2 Font 24/Smallcaps Map View 76x50 Zoom Use 0% Tactical HUD 1 Map Filters NONE Filters SHIFT_HUE(315) Steam 1 RUN: 725f05b4-a0fb-4af2-962a-1f613ff25776